[Event "*** Titled Tuesday Blitz"]
[Site "Chess.com"]
[Date "2021.04.20"]
[Round "9"]
[White "akanga001"]
[Black "1Hf3"]
[Result "1-0"]
[WhiteElo "1992"]
[BlackElo "1990"]
[TimeControl "180+1"]
[EndTime "11:42:57 PDT"]
[Termination "akanga001 won by resignation"]

1. e4 {[%clk 0:03:00.9]} 1... e5 {[%clk 0:02:54.2]} 2. Nf3 {[%clk 0:03:00.7]}
2... Nc6 {[%clk 0:02:54.2]} 3. Bb5 {[%clk 0:03:00.5]} 3... a6 {[%clk 0:02:53.8]}
4. Ba4 {[%clk 0:02:59.9]} 4... Nf6 {[%clk 0:02:51.6]} 5. O-O {[%clk 0:02:59.5]}
5... b5 {[%clk 0:02:45.6]} 6. Bb3 {[%clk 0:02:57.5]} 6... Be7 {[%clk 0:02:46.2]}
7. Re1 {[%clk 0:02:56.4]} 7... d6 {[%clk 0:02:37.1]} 8. d4 {[%clk 0:02:56]} 8...
Bg4 {[%clk 0:02:27.8]} 9. c3 {[%clk 0:02:54.5]} 9... O-O {[%clk 0:02:20.9]} 10.
d5 {[%clk 0:02:47.7]} 10... Nb8 {[%clk 0:02:19.7]} 11. Nbd2 {[%clk 0:02:45.3]}
11... c6 {[%clk 0:02:10.2]} 12. Nf1 {[%clk 0:02:38.4]} 12... cxd5 {[%clk
0:02:07.5]} 13. exd5 {[%clk 0:02:32.7]} 13... e4 {[%clk 0:02:05.6]} 14. h3
{[%clk 0:02:33.1]} 14... exf3 {[%clk 0:01:47.8]} 15. hxg4 {[%clk 0:02:32.3]}
15... Nxg4 {[%clk 0:01:39.8]} 16. Qxf3 {[%clk 0:02:30.5]} 16... Ne5 {[%clk
0:01:40.2]} 17. Qh3 {[%clk 0:02:27.3]} 17... Nbd7 {[%clk 0:01:39]} 18. Bc2
{[%clk 0:02:26.5]} 18... Nf6 {[%clk 0:01:38.2]} 19. Bg5 {[%clk 0:02:25.1]} 19...
h6 {[%clk 0:01:37.9]} 20. Bxf6 {[%clk 0:02:23.2]} 20... Bxf6 {[%clk 0:01:38.4]}
21. Ng3 {[%clk 0:02:20.8]} 21... g6 {[%clk 0:01:27.9]} 22. Qxh6 {[%clk 0:02:18]}
22... Bg5 {[%clk 0:01:28.2]} 23. Qh3 {[%clk 0:02:15.5]} 23... Kg7 {[%clk
0:01:27.6]} 24. Ne4 {[%clk 0:02:14.4]} 24... Rh8 {[%clk 0:01:25.3]} 25. Qg3
{[%clk 0:02:14.1]} 25... Bh4 {[%clk 0:01:22.2]} 26. Qe3 {[%clk 0:02:02.1]} 26...
Ng4 {[%clk 0:01:03.1]} 27. Qd4+ {[%clk 0:02:00.9]} 27... f6 {[%clk 0:01:01.4]}
28. g3 {[%clk 0:01:52.4]} 28... Bg5 {[%clk 0:00:57.3]} 29. Nxg5 {[%clk
0:01:49.6]} 29... Qd7 {[%clk 0:00:29.6]} 30. Ne6+ {[%clk 0:01:44.6]} 30... Kf7
{[%clk 0:00:28.8]} 31. Qxg4 {[%clk 0:01:44.1]} 31... Rh6 {[%clk 0:00:25.9]} 32.
Ng5+ {[%clk 0:01:43.9]} 1-0

[Event "*** Titled Tuesday Blitz"]
[Site "Chess.com"]
[Date "2021.04.20"]
[Round "9"]
[White "nocnypako"]
[Black "Kretov_Evgenij"]
[Result "1-0"]
[WhiteElo "2547"]
[BlackElo "2647"]
[TimeControl "180+1"]
[EndTime "11:43:19 PDT"]
[Termination "nocnypako won by resignation"]

1. d4 {[%clk 0:03:00.9]} 1... Nf6 {[%clk 0:02:57.6]} 2. c4 {[%clk 0:03:00.5]}
2... c5 {[%clk 0:02:57.6]} 3. d5 {[%clk 0:03:00.1]} 3... e5 {[%clk 0:02:58]} 4.
Nc3 {[%clk 0:02:59.1]} 4... d6 {[%clk 0:02:58.3]} 5. e4 {[%clk 0:02:58.8]} 5...
Be7 {[%clk 0:02:58.5]} 6. Nf3 {[%clk 0:02:56.2]} 6... O-O {[%clk 0:02:58.6]} 7.
Be2 {[%clk 0:02:55.7]} 7... Ne8 {[%clk 0:02:58.8]} 8. O-O {[%clk 0:02:55.4]}
8... Nd7 {[%clk 0:02:58.9]} 9. Rb1 {[%clk 0:02:53.8]} 9... g6 {[%clk 0:02:58.7]}
10. a3 {[%clk 0:02:50]} 10... Ng7 {[%clk 0:02:58.4]} 11. b4 {[%clk 0:02:47.5]}
11... a5 {[%clk 0:02:58.6]} 12. bxa5 {[%clk 0:02:40.8]} 12... Rxa5 {[%clk
0:02:57]} 13. Nb5 {[%clk 0:02:31.7]} 13... f5 {[%clk 0:02:50.4]} 14. Nd2 {[%clk
0:02:29.3]} 14... Nf6 {[%clk 0:02:43.8]} 15. Bd3 {[%clk 0:02:26.1]} 15... f4
{[%clk 0:02:43.1]} 16. Nb3 {[%clk 0:02:02.6]} 16... Ra6 {[%clk 0:02:42.5]} 17.
Bd2 {[%clk 0:01:59.9]} 17... g5 {[%clk 0:02:40.6]} 18. f3 {[%clk 0:01:54.5]}
18... h5 {[%clk 0:02:40.1]} 19. Be1 {[%clk 0:01:54.2]} 19... Rf7 {[%clk
0:02:36.6]} 20. Kh1 {[%clk 0:01:49.3]} 20... Bf8 {[%clk 0:02:35.2]} 21. g3
{[%clk 0:01:44.5]} 21... g4 {[%clk 0:02:27]} 22. gxf4 {[%clk 0:01:36.5]} 22...
exf4 {[%clk 0:02:26.2]} 23. Bh4 {[%clk 0:01:35.4]} 23... Qe8 {[%clk 0:02:13.7]}
24. Bxf6 {[%clk 0:01:26.3]} 24... Rxf6 {[%clk 0:02:14]} 25. Nc7 {[%clk
0:01:25.7]} 25... Qe5 {[%clk 0:02:12.2]} 26. Nxa6 {[%clk 0:01:25.5]} 26... bxa6
{[%clk 0:02:12.5]} 27. Qd2 {[%clk 0:01:15.1]} 27... gxf3 {[%clk 0:01:41.3]} 28.
Rxf3 {[%clk 0:01:11.3]} 28... Bg4 {[%clk 0:01:41.2]} 29. Rf2 {[%clk 0:01:11.6]}
29... f3 {[%clk 0:01:41.4]} 30. Na5 {[%clk 0:01:05.7]} 30... Ne8 {[%clk
0:01:38.7]} 31. Nc6 {[%clk 0:01:02.3]} 31... Qf4 {[%clk 0:01:29.7]} 32. Qxf4
{[%clk 0:01:00.5]} 32... Rxf4 {[%clk 0:01:28.7]} 33. Rb8 {[%clk 0:00:52.9]}
33... Kf7 {[%clk 0:01:27.7]} 34. e5 {[%clk 0:00:51.1]} 34... Bg7 {[%clk
0:01:07.5]} 35. e6+ {[%clk 0:00:45.8]} 35... Kf8 {[%clk 0:01:06.9]} 36. Bg6
{[%clk 0:00:42.2]} 1-0

[Event "*** Titled Tuesday Blitz"]
[Site "Chess.com"]
[Date "2021.04.20"]
[Round "9"]
[White "Orest_Vovk"]
[Black "prachiti01"]
[Result "1-0"]
[WhiteElo "2466"]
[BlackElo "2243"]
[TimeControl "180+1"]
[EndTime "11:43:37 PDT"]
[Termination "Orest_Vovk won by checkmate"]

1. h3 {[%clk 0:03:00.9]} 1... Nf6 {[%clk 0:02:58.7]} 2. g4 {[%clk 0:02:57.1]}
2... d5 {[%clk 0:02:52.2]} 3. Bg2 {[%clk 0:02:56.9]} 3... c6 {[%clk 0:02:51.6]}
4. d4 {[%clk 0:02:55]} 4... h6 {[%clk 0:02:47.4]} 5. Nf3 {[%clk 0:02:54.7]} 5...
e6 {[%clk 0:02:44.8]} 6. O-O {[%clk 0:02:54.7]} 6... Bd6 {[%clk 0:02:42.3]} 7.
Nc3 {[%clk 0:02:53.8]} 7... Qc7 {[%clk 0:02:42.2]} 8. Qd3 {[%clk 0:02:53.2]}
8... Nbd7 {[%clk 0:02:42.1]} 9. e4 {[%clk 0:02:52.8]} 9... dxe4 {[%clk
0:02:32.1]} 10. Nxe4 {[%clk 0:02:52.7]} 10... Nxe4 {[%clk 0:02:31.9]} 11. Qxe4
{[%clk 0:02:52.2]} 11... Nf6 {[%clk 0:02:31.4]} 12. Qe2 {[%clk 0:02:51.9]} 12...
Nd5 {[%clk 0:02:24.2]} 13. Ne5 {[%clk 0:02:49.3]} 13... h5 {[%clk 0:01:57.9]}
14. c4 {[%clk 0:02:44.8]} 14... hxg4 {[%clk 0:01:49]} 15. cxd5 {[%clk
0:02:43.5]} 15... gxh3 {[%clk 0:01:48.8]} 16. Bf3 {[%clk 0:02:37.9]} 16... cxd5
{[%clk 0:01:33]} 17. Bf4 {[%clk 0:02:27.3]} 17... h2+ {[%clk 0:00:59.1]} 18. Kh1
{[%clk 0:02:26.7]} 18... a6 {[%clk 0:00:51.9]} 19. Rac1 {[%clk 0:02:25.8]} 19...
Qd8 {[%clk 0:00:49.6]} 20. Bxd5 {[%clk 0:02:05.9]} 20... Bxe5 {[%clk 0:00:41.3]}
21. Qxe5 {[%clk 0:02:05.4]} 21... Qxd5+ {[%clk 0:00:39.6]} 22. Qxd5 {[%clk
0:02:05.3]} 22... exd5 {[%clk 0:00:40.5]} 23. Rc7 {[%clk 0:02:04.5]} 23... Bh3
{[%clk 0:00:18.7]} 24. Re1+ {[%clk 0:02:00.1]} 24... Kf8 {[%clk 0:00:17.1]} 25.
Kxh2 {[%clk 0:01:52.8]} 25... Be6+ {[%clk 0:00:13.8]} 26. Kg2 {[%clk 0:01:51]}
26... Rc8 {[%clk 0:00:12.9]} 27. Rxe6 {[%clk 0:01:43.8]} 27... Rxc7 {[%clk
0:00:11.6]} 28. Bd6+ {[%clk 0:01:43.6]} 28... Kg8 {[%clk 0:00:09.1]} 29. Re8+
{[%clk 0:01:43.3]} 29... Kh7 {[%clk 0:00:09.5]} 30. Rxh8+ {[%clk 0:01:43.3]}
30... Kxh8 {[%clk 0:00:10.4]} 31. Bxc7 {[%clk 0:01:43.5]} 31... Kh7 {[%clk
0:00:10.9]} 32. Kf3 {[%clk 0:01:42.3]} 32... Kg6 {[%clk 0:00:11.8]} 33. Kf4
{[%clk 0:01:42.4]} 33... Kf6 {[%clk 0:00:11.1]} 34. Be5+ {[%clk 0:01:42.6]}
34... Ke6 {[%clk 0:00:11.7]} 35. Bxg7 {[%clk 0:01:42.4]} 35... b5 {[%clk
0:00:11.8]} 36. b4 {[%clk 0:01:42]} 36... a5 {[%clk 0:00:12.7]} 37. bxa5 {[%clk
0:01:40.4]} 37... b4 {[%clk 0:00:13.6]} 38. a6 {[%clk 0:01:40.6]} 38... b3
{[%clk 0:00:13.1]} 39. axb3 {[%clk 0:01:40.4]} 39... f5 {[%clk 0:00:13.3]} 40.
a7 {[%clk 0:01:39.8]} 40... Kf7 {[%clk 0:00:14.2]} 41. a8=Q {[%clk 0:01:39.4]}
41... Kg6 {[%clk 0:00:15]} 42. Qxd5 {[%clk 0:01:36.7]} 42... Kh5 {[%clk
0:00:14.1]} 43. Qxf5+ {[%clk 0:01:35.9]} 43... Kh4 {[%clk 0:00:15]} 44. Qh7#
{[%clk 0:01:36]} 1-0

[Event "*** Titled Tuesday Blitz"]
[Site "Chess.com"]
[Date "2021.04.20"]
[Round "9"]
[White "Alliswell998"]
[Black "C_K_G"]
[Result "1-0"]
[WhiteElo "2634"]
[BlackElo "2084"]
[TimeControl "180+1"]
[EndTime "11:43:41 PDT"]
[Termination "Alliswell998 won on time"]

1. d4 {[%clk 0:03:00.9]} 1... d5 {[%clk 0:00:12.9]} 2. Nf3 {[%clk 0:02:14.9]}
2... e6 {[%clk 0:00:13.8]} 3. Bf4 {[%clk 0:02:15.1]} 3... Nf6 {[%clk 0:00:14.4]}
4. e3 {[%clk 0:02:15.7]} 4... Bd6 {[%clk 0:00:14.9]} 5. Bxd6 {[%clk 0:02:15.3]}
5... Qxd6 {[%clk 0:00:15]} 6. c4 {[%clk 0:02:15.6]} 6... b6 {[%clk 0:00:14.5]}
7. Nc3 {[%clk 0:02:14.9]} 7... Bb7 {[%clk 0:00:14.7]} 8. Rc1 {[%clk 0:02:13.1]}
8... a6 {[%clk 0:00:14.1]} 9. a3 {[%clk 0:02:11.7]} 9... c5 {[%clk 0:00:14.1]}
10. dxc5 {[%clk 0:02:09.3]} 10... bxc5 {[%clk 0:00:13.9]} 11. cxd5 {[%clk
0:02:06.7]} 11... Nxd5 {[%clk 0:00:13.1]} 12. Ne4 {[%clk 0:02:05.5]} 12... Qe7
{[%clk 0:00:12.7]} 13. Nxc5 {[%clk 0:02:04.2]} 13... O-O {[%clk 0:00:12.5]} 14.
Be2 {[%clk 0:02:03.6]} 14... Nc6 {[%clk 0:00:11.4]} 15. O-O {[%clk 0:02:03.2]}
15... Rfd8 {[%clk 0:00:10.6]} 16. Qc2 {[%clk 0:02:02.9]} 16... Rac8 {[%clk
0:00:10.4]} 17. Nxb7 {[%clk 0:01:57.5]} 17... Qxb7 {[%clk 0:00:09.4]} 18. Qc4
{[%clk 0:01:53.4]} 18... a5 {[%clk 0:00:09.3]} 19. Qa6 {[%clk 0:01:52.8]} 19...
Qd7 {[%clk 0:00:07.6]} 20. Bb5 {[%clk 0:01:50.7]} 20... Nde7 {[%clk 0:00:07.7]}
21. Ne5 {[%clk 0:01:50.1]} 21... Qd5 {[%clk 0:00:05.9]} 22. Nxc6 {[%clk
0:01:49.6]} 22... Nxc6 {[%clk 0:00:06.3]} 23. Bxc6 {[%clk 0:01:49.9]} 23... Qd6
{[%clk 0:00:04.6]} 24. Bb7 {[%clk 0:01:47.4]} 24... Rxc1 {[%clk 0:00:03.9]} 25.
Rxc1 {[%clk 0:01:47.9]} 25... Qd1+ {[%clk 0:00:03.8]} 26. Qf1 {[%clk 0:01:48.5]}
26... Qd2 {[%clk 0:00:03.3]} 27. b4 {[%clk 0:01:42.1]} 27... axb4 {[%clk
0:00:02.8]} 28. axb4 {[%clk 0:01:43]} 28... Qxb4 {[%clk 0:00:03.3]} 29. Bf3
{[%clk 0:01:43]} 29... Qe7 {[%clk 0:00:03.1]} 30. g3 {[%clk 0:01:43.2]} 30... g6
{[%clk 0:00:03.4]} 31. Kg2 {[%clk 0:01:43.7]} 31... h5 {[%clk 0:00:03.8]} 32.
Qe2 {[%clk 0:01:43.5]} 32... h4 {[%clk 0:00:02.9]} 33. Rd1 {[%clk 0:01:42.6]}
33... Rb8 {[%clk 0:00:02.3]} 34. Rd4 {[%clk 0:01:42.5]} 34... Qf6 {[%clk
0:00:02.4]} 35. Rxh4 {[%clk 0:01:41.6]} 35... Rb2 {[%clk 0:00:02.5]} 36. Rf4
{[%clk 0:01:39.9]} 36... Qc3 {[%clk 0:00:02.2]} 37. Qc4 {[%clk 0:01:35.4]} 37...
Qxe3 {[%clk 0:00:01.9]} 38. Bg4 {[%clk 0:01:29.9]} 1-0

[Event "*** Titled Tuesday Blitz"]
[Site "Chess.com"]
[Date "2021.04.20"]
[Round "9"]
[White "Legendinunknown"]
[Black "frenchpin"]
[Result "1-0"]
[WhiteElo "2586"]
[BlackElo "2430"]
[TimeControl "180+1"]
[EndTime "11:43:45 PDT"]
[Termination "Legendinunknown won by resignation"]

1. d4 {[%clk 0:03:00.9]} 1... e6 {[%clk 0:03:00.9]} 2. c4 {[%clk 0:02:59.8]}
2... Nf6 {[%clk 0:02:59.8]} 3. Nc3 {[%clk 0:03:00.3]} 3... Bb4 {[%clk 0:02:59]}
4. f3 {[%clk 0:02:59]} 4... O-O {[%clk 0:02:57.5]} 5. e4 {[%clk 0:02:58.6]} 5...
Ne8 {[%clk 0:02:47.9]} 6. Bd3 {[%clk 0:02:56.8]} 6... b6 {[%clk 0:02:47.3]} 7.
Ne2 {[%clk 0:02:53.8]} 7... Ba6 {[%clk 0:02:46.8]} 8. O-O {[%clk 0:02:53.1]}
8... Nc6 {[%clk 0:02:45.9]} 9. Be3 {[%clk 0:02:52.5]} 9... Na5 {[%clk
0:02:42.8]} 10. b3 {[%clk 0:02:49.8]} 10... c6 {[%clk 0:02:19.1]} 11. a3 {[%clk
0:02:47.1]} 11... Be7 {[%clk 0:02:16.6]} 12. f4 {[%clk 0:02:38.8]} 12... d5
{[%clk 0:02:08.5]} 13. cxd5 {[%clk 0:02:38.3]} 13... Bxd3 {[%clk 0:02:07.3]} 14.
Qxd3 {[%clk 0:02:39.2]} 14... cxd5 {[%clk 0:02:03.6]} 15. exd5 {[%clk
0:02:34.2]} 15... exd5 {[%clk 0:02:03.3]} 16. Rab1 {[%clk 0:02:20]} 16... Rc8
{[%clk 0:01:59.5]} 17. f5 {[%clk 0:02:18.3]} 17... Nf6 {[%clk 0:01:50.6]} 18.
Bg5 {[%clk 0:02:16.2]} 18... Re8 {[%clk 0:01:41.9]} 19. Nf4 {[%clk 0:01:55.5]}
19... Rxc3 {[%clk 0:01:13.8]} 20. Qxc3 {[%clk 0:01:56.4]} 20... Ne4 {[%clk
0:01:14]} 21. Bxe7 {[%clk 0:01:57.3]} 21... Nxc3 {[%clk 0:01:14]} 22. Bxd8
{[%clk 0:01:58.2]} 22... Nxb1 {[%clk 0:01:14.2]} 23. Bxb6 {[%clk 0:01:52.2]}
23... axb6 {[%clk 0:01:12]} 24. Rxb1 {[%clk 0:01:50]} 24... Rd8 {[%clk
0:01:05.3]} 25. b4 {[%clk 0:01:47]} 25... Nc4 {[%clk 0:01:04.9]} 26. a4 {[%clk
0:01:45.3]} 26... g5 {[%clk 0:01:04.7]} 27. Nd3 {[%clk 0:01:40.1]} 27... Ra8
{[%clk 0:00:46.1]} 28. Ra1 {[%clk 0:01:39.1]} 28... f6 {[%clk 0:00:46.4]} 29.
Kf2 {[%clk 0:01:33.2]} 29... Kf7 {[%clk 0:00:45.9]} 30. b5 {[%clk 0:01:32]}
30... Ke7 {[%clk 0:00:43.5]} 31. Re1+ {[%clk 0:01:28.5]} 31... Kd7 {[%clk
0:00:42.3]} 32. Nb4 {[%clk 0:01:26.4]} 32... Rxa4 {[%clk 0:00:37]} 33. Nxd5
{[%clk 0:01:26.1]} 33... Ra2+ {[%clk 0:00:37.6]} 34. Re2 {[%clk 0:01:24.2]}
34... Rxe2+ {[%clk 0:00:32]} 35. Kxe2 {[%clk 0:01:25.1]} 35... Nd6 {[%clk
0:00:32.5]} 36. Nxb6+ {[%clk 0:01:25]} 36... Kd8 {[%clk 0:00:28.3]} 37. Nd5
{[%clk 0:01:24.6]} 37... Nxf5 {[%clk 0:00:28.5]} 38. Kd3 {[%clk 0:01:22.3]}
38... Nd6 {[%clk 0:00:26.9]} 39. Nxf6 {[%clk 0:01:22]} 39... Nxb5 {[%clk
0:00:25.8]} 40. Nxh7 {[%clk 0:01:21]} 40... g4 {[%clk 0:00:26.2]} 41. Nf6 {[%clk
0:01:19.4]} 41... g3 {[%clk 0:00:24.1]} 42. h4 {[%clk 0:01:19.9]} 42... Ke7
{[%clk 0:00:23.9]} 43. Ne4 {[%clk 0:01:18.2]} 1-0

[Event "*** Titled Tuesday Blitz"]
[Site "Chess.com"]
[Date "2021.04.20"]
[Round "9"]
[White "2008king"]
[Black "Guzman70"]
[Result "1/2-1/2"]
[WhiteElo "2135"]
[BlackElo "2286"]
[TimeControl "180+1"]
[EndTime "11:43:53 PDT"]
[Termination "Game drawn - insufficient material"]

1. e4 {[%clk 0:03:00.9]} 1... c6 {[%clk 0:02:59.7]} 2. d4 {[%clk 0:03:00.6]}
2... d5 {[%clk 0:02:59.5]} 3. exd5 {[%clk 0:03:01.1]} 3... cxd5 {[%clk
0:02:59.7]} 4. c4 {[%clk 0:03:01.7]} 4... Nf6 {[%clk 0:02:58.6]} 5. Nc3 {[%clk
0:03:01.5]} 5... g6 {[%clk 0:02:58.5]} 6. Nf3 {[%clk 0:03:00.4]} 6... Bg7 {[%clk
0:02:54.2]} 7. cxd5 {[%clk 0:02:59.9]} 7... O-O {[%clk 0:02:53.4]} 8. Bc4 {[%clk
0:02:59.8]} 8... a6 {[%clk 0:02:52.9]} 9. a4 {[%clk 0:02:56.6]} 9... Nbd7 {[%clk
0:02:51]} 10. O-O {[%clk 0:02:56.2]} 10... Nb6 {[%clk 0:02:49.3]} 11. Bb3 {[%clk
0:02:56.4]} 11... Nbxd5 {[%clk 0:02:33.4]} 12. Bg5 {[%clk 0:02:52.1]} 12... Be6
{[%clk 0:02:15.9]} 13. Re1 {[%clk 0:02:38.2]} 13... Rc8 {[%clk 0:02:07.4]} 14.
Rc1 {[%clk 0:02:36.8]} 14... Nxc3 {[%clk 0:02:03.3]} 15. bxc3 {[%clk 0:02:37.7]}
15... Bxb3 {[%clk 0:02:01.3]} 16. Qxb3 {[%clk 0:02:38.1]} 16... h6 {[%clk
0:01:54.4]} 17. Bf4 {[%clk 0:02:33.5]} 17... Nd5 {[%clk 0:01:35.2]} 18. Be5
{[%clk 0:02:32.3]} 18... Bxe5 {[%clk 0:01:34.4]} 19. Nxe5 {[%clk 0:02:30.2]}
19... e6 {[%clk 0:01:33.1]} 20. c4 {[%clk 0:02:26.5]} 20... Nf4 {[%clk
0:01:30.4]} 21. Qe3 {[%clk 0:02:18.7]} 21... Qg5 {[%clk 0:01:25.3]} 22. g3
{[%clk 0:02:12]} 22... Nh3+ {[%clk 0:01:22]} 23. Kg2 {[%clk 0:02:11.5]} 23...
Qxe3 {[%clk 0:01:22.4]} 24. Rxe3 {[%clk 0:02:09]} 24... Ng5 {[%clk 0:01:22.7]}
25. f4 {[%clk 0:02:08.8]} 25... Nh7 {[%clk 0:01:22.6]} 26. Rd3 {[%clk
0:01:54.2]} 26... Rfd8 {[%clk 0:01:18.9]} 27. Kf3 {[%clk 0:01:51.3]} 27... b5
{[%clk 0:01:08.4]} 28. axb5 {[%clk 0:01:49.3]} 28... axb5 {[%clk 0:01:08.1]} 29.
c5 {[%clk 0:01:49.9]} 29... Nf6 {[%clk 0:01:06.1]} 30. Rb1 {[%clk 0:01:45.2]}
30... Nd7 {[%clk 0:00:57.6]} 31. Nxd7 {[%clk 0:01:42.7]} 31... Rxd7 {[%clk
0:00:58]} 32. Rxb5 {[%clk 0:01:43.1]} 32... Kg7 {[%clk 0:00:57.6]} 33. Ke4
{[%clk 0:01:41.7]} 33... Kf6 {[%clk 0:00:56.9]} 34. g4 {[%clk 0:01:41.2]} 34...
h5 {[%clk 0:00:56.8]} 35. h3 {[%clk 0:01:40.9]} 35... hxg4 {[%clk 0:00:56.3]}
36. hxg4 {[%clk 0:01:41.8]} 36... g5 {[%clk 0:00:54.4]} 37. Rf3 {[%clk
0:01:35.5]} 37... gxf4 {[%clk 0:00:52]} 38. Rxf4+ {[%clk 0:01:35.8]} 38... Kg5
{[%clk 0:00:52.2]} 39. Rb1 {[%clk 0:01:34.5]} 39... Rxd4+ {[%clk 0:00:48.2]} 40.
Kxd4 {[%clk 0:01:33.3]} 40... Kxf4 {[%clk 0:00:49.1]} 41. Rf1+ {[%clk
0:01:32.6]} 41... Kxg4 {[%clk 0:00:48.4]} 42. Rxf7 {[%clk 0:01:33.5]} 42... e5+
{[%clk 0:00:46.4]} 43. Kd5 {[%clk 0:01:33.3]} 43... e4 {[%clk 0:00:46.6]} 44.
Re7 {[%clk 0:01:31.2]} 44... Kf3 {[%clk 0:00:44.8]} 45. Rf7+ {[%clk 0:01:30.8]}
45... Ke2 {[%clk 0:00:44.5]} 46. c6 {[%clk 0:01:12]} 46... e3 {[%clk 0:00:44.3]}
47. Kd6 {[%clk 0:01:07]} 47... Kd2 {[%clk 0:00:43.9]} 48. Kd7 {[%clk 0:01:05.8]}
48... Ra8 {[%clk 0:00:42.3]} 49. c7 {[%clk 0:01:04.5]} 49... e2 {[%clk
0:00:40.6]} 50. Re7 {[%clk 0:01:01.6]} 50... e1=Q {[%clk 0:00:38.6]} 51. Rxe1
{[%clk 0:01:01.4]} 51... Kxe1 {[%clk 0:00:38.5]} 52. c8=Q {[%clk 0:01:02.3]}
52... Rxc8 {[%clk 0:00:38.2]} 53. Kxc8 {[%clk 0:01:03.2]} 1/2-1/2

[Event "*** Titled Tuesday Blitz"]
[Site "Chess.com"]
[Date "2021.04.20"]
[Round "9"]
[White "alejogarcia1999"]
[Black "LamaChampetre"]
[Result "1-0"]
[WhiteElo "2465"]
[BlackElo "2219"]
[TimeControl "180+1"]
[EndTime "11:43:54 PDT"]
[Termination "alejogarcia1999 won on time"]

1. d4 {[%clk 0:03:00.9]} 1... Nf6 {[%clk 0:02:59.6]} 2. c4 {[%clk 0:03:01]} 2...
g6 {[%clk 0:03:00.1]} 3. Nc3 {[%clk 0:03:00.8]} 3... d5 {[%clk 0:03:00.7]} 4.
cxd5 {[%clk 0:03:01.1]} 4... Nxd5 {[%clk 0:03:01.6]} 5. e4 {[%clk 0:03:01.5]}
5... Nxc3 {[%clk 0:03:01.7]} 6. bxc3 {[%clk 0:03:02.4]} 6... Bg7 {[%clk
0:03:02.2]} 7. Bc4 {[%clk 0:03:03.2]} 7... c5 {[%clk 0:03:01.4]} 8. Ne2 {[%clk
0:03:03.4]} 8... O-O {[%clk 0:02:52.8]} 9. O-O {[%clk 0:03:02.7]} 9... Nc6
{[%clk 0:02:53]} 10. Be3 {[%clk 0:03:02.1]} 10... Bg4 {[%clk 0:02:53.1]} 11. f3
{[%clk 0:03:01.3]} 11... Bd7 {[%clk 0:02:53.6]} 12. h4 {[%clk 0:02:54.1]} 12...
h5 {[%clk 0:02:31.8]} 13. Qd2 {[%clk 0:02:50.2]} 13... Qc7 {[%clk 0:02:30.9]}
14. Nf4 {[%clk 0:02:41.9]} 14... e6 {[%clk 0:02:15.5]} 15. Rac1 {[%clk
0:02:31.2]} 15... Qa5 {[%clk 0:01:35.9]} 16. d5 {[%clk 0:02:10.3]} 16... Ne5
{[%clk 0:01:20.6]} 17. Bb3 {[%clk 0:02:09.6]} 17... c4 {[%clk 0:00:56.8]} 18.
Bc2 {[%clk 0:02:03]} 18... Rfe8 {[%clk 0:00:56.5]} 19. Bd4 {[%clk 0:01:35.8]}
19... Rad8 {[%clk 0:00:54.9]} 20. Qf2 {[%clk 0:01:27]} 20... exd5 {[%clk
0:00:32.2]} 21. Nxd5 {[%clk 0:01:25.6]} 21... Bc6 {[%clk 0:00:31.9]} 22. Nb4
{[%clk 0:01:20.6]} 22... a6 {[%clk 0:00:24.9]} 23. Bb6 {[%clk 0:01:19.5]} 23...
Qb5 {[%clk 0:00:18.7]} 24. a4 {[%clk 0:01:18.6]} 24... Nd3 {[%clk 0:00:10.7]}
25. Bxd3 {[%clk 0:01:15.4]} 25... Qe5 {[%clk 0:00:10]} 26. Bxc4 {[%clk
0:01:11.1]} 26... Rc8 {[%clk 0:00:04.1]} 27. Nxc6 {[%clk 0:01:09]} 27... Rxc6
{[%clk 0:00:05]} 28. Bd5 {[%clk 0:01:08.4]} 28... Rxc3 {[%clk 0:00:03.1]} 29.
Rxc3 {[%clk 0:01:03.2]} 29... Qxc3 {[%clk 0:00:04]} 30. a5 {[%clk 0:01:03.5]}
30... Rc8 {[%clk 0:00:02.8]} 31. Kh1 {[%clk 0:01:01.7]} 31... Rb8 {[%clk
0:00:02.1]} 32. Qg3 {[%clk 0:01:01.2]} 32... Be5 {[%clk 0:00:01.2]} 33. Qxg6+
{[%clk 0:01:01.2]} 1-0

[Event "*** Titled Tuesday Blitz"]
[Site "Chess.com"]
[Date "2021.04.20"]
[Round "9"]
[White "McCarthyStone"]
[Black "AshotParvanyan"]
[Result "0-1"]
[WhiteElo "2381"]
[BlackElo "2530"]
[TimeControl "180+1"]
[EndTime "11:43:55 PDT"]
[Termination "AshotParvanyan won by resignation"]

1. e4 {[%clk 0:03:00.9]} 1... e6 {[%clk 0:03:00]} 2. d3 {[%clk 0:02:56.4]} 2...
d5 {[%clk 0:02:59.5]} 3. Nd2 {[%clk 0:02:56.9]} 3... Nf6 {[%clk 0:02:58.8]} 4.
Ngf3 {[%clk 0:02:57.3]} 4... b6 {[%clk 0:02:59.1]} 5. g3 {[%clk 0:02:56.2]} 5...
dxe4 {[%clk 0:02:56.9]} 6. dxe4 {[%clk 0:02:54.5]} 6... Bb7 {[%clk 0:02:56.9]}
7. e5 {[%clk 0:02:24.1]} 7... Ne4 {[%clk 0:02:41.2]} 8. Bg2 {[%clk 0:02:18.7]}
8... Bc5 {[%clk 0:02:11.4]} 9. O-O {[%clk 0:02:12.5]} 9... Nxd2 {[%clk
0:01:54.1]} 10. Bxd2 {[%clk 0:02:10]} 10... O-O {[%clk 0:01:53.1]} 11. Re1
{[%clk 0:02:05.5]} 11... Nc6 {[%clk 0:01:42.2]} 12. Bg5 {[%clk 0:02:02.2]} 12...
Qxd1 {[%clk 0:01:39.4]} 13. Raxd1 {[%clk 0:02:03.1]} 13... h6 {[%clk 0:01:35.3]}
14. Be3 {[%clk 0:01:59.7]} 14... Bxe3 {[%clk 0:01:31.2]} 15. Rxe3 {[%clk
0:02:00.6]} 15... Nb4 {[%clk 0:01:15.9]} 16. a3 {[%clk 0:01:55.8]} 16... Nxc2
{[%clk 0:00:56.8]} 17. Rc3 {[%clk 0:01:39.8]} 17... Rad8 {[%clk 0:00:54.5]} 18.
Rc1 {[%clk 0:01:35.4]} 18... Bxf3 {[%clk 0:00:46.4]} 19. Bxf3 {[%clk 0:01:36.3]}
19... Nd4 {[%clk 0:00:44.7]} 20. Be4 {[%clk 0:01:34.5]} 20... Ne2+ {[%clk
0:00:43.9]} 21. Kg2 {[%clk 0:01:32.3]} 21... Nxc1 {[%clk 0:00:43.2]} 22. Rxc1
{[%clk 0:01:30.8]} 22... c5 {[%clk 0:00:43.3]} 23. Rc2 {[%clk 0:01:29.8]} 23...
Rd4 {[%clk 0:00:42.7]} 24. Kf3 {[%clk 0:01:30.3]} 24... Rfd8 {[%clk 0:00:40.8]}
25. Ke3 {[%clk 0:01:30.8]} 25... Rd1 {[%clk 0:00:40.1]} 26. b4 {[%clk
0:01:26.9]} 26... cxb4 {[%clk 0:00:20]} 27. axb4 {[%clk 0:01:27.8]} 27... g6
{[%clk 0:00:19.9]} 28. Rc7 {[%clk 0:01:25.9]} 28... R8d7 {[%clk 0:00:19.6]} 29.
Rc8+ {[%clk 0:01:23]} 29... Kg7 {[%clk 0:00:20.1]} 30. b5 {[%clk 0:01:23.9]}
30... Re1+ {[%clk 0:00:19.6]} 31. Kf4 {[%clk 0:01:18.8]} 31... Rd4 {[%clk
0:00:18.8]} 32. f3 {[%clk 0:01:19.3]} 32... Rb1 {[%clk 0:00:15.9]} 33. Rc7
{[%clk 0:01:13.1]} 33... Ra4 {[%clk 0:00:12.8]} 34. g4 {[%clk 0:01:06.7]} 34...
Rxb5 {[%clk 0:00:12.4]} 35. Kg3 {[%clk 0:01:07.3]} 35... Rxe5 {[%clk 0:00:11.8]}
36. Bc6 {[%clk 0:01:06.3]} 36... Rc5 {[%clk 0:00:11.3]} 37. Rxa7 {[%clk
0:01:02]} 37... Rxa7 {[%clk 0:00:10]} 0-1